fUST/lending_fUST_20250819
["ID","MTS","AMOUNT","RATE_DAILY","PERIOD"]
[380113999,1755549063315,-460.0,0.00022877,2]
[380114000,1755549063325,-160.0,0.00023,2]
[380114001,1755549063336,-480.0,0.00023013,2]
[380114002,1755549063345,-395.74,0.00023013,2]
[380114003,1755549063356,-480.0,0.00023013,2]
[380114004,1755549063365,-480.0,0.00023013,2]
[380114005,1755549063376,-2519.6,0.00023013,2]
[380114006,1755549063387,-480.0,0.00023013,2]
[380114007,1755549063398,-694.48,0.00023013,2]
[380114008,1755549063409,-480.0,0.00023013,2]
[380114009,1755549063418,-553.82,0.00023013,2]
[380114010,1755549063428,-480.0,0.00023013,2]
[380114011,1755549063437,-195.51828017,0.00023013,2]
[380114012,1755549063447,-697.94,0.00023013,2]
[380114013,1755549063456,-681.63,0.00023013,2]
[380114014,1755549063465,-547.29,0.00023013,2]
[380114015,1755549063475,-2307.81,0.00023013,2]
[380114016,1755549063485,-480.0,0.00023013,2]
[380114017,1755549063494,-975.87,0.00023013,2]
[380114018,1755549063503,-579.91,0.00023013,2]
[380114019,1755549063512,-480.0,0.00023013,2]
[380114020,1755549063522,-983.25,0.00023013,2]
[380114021,1755549063532,-480.0,0.00023013,2]
[380114022,1755549063541,-480.0,0.00023013,2]
[380114023,1755549063551,-480.0,0.00023013,2]
[380114024,1755549063561,-1116.2,0.00023013,2]
[380114025,1755549063570,-508.63,0.00023013,2]
[380114026,1755549063580,-604.86,0.00023013,2]
[380114027,1755549063589,-480.0,0.00023013,2]
[380114028,1755549063599,-1719.49,0.00023013,2]
[380114029,1755549063609,-174.99,0.00023013,2]
[380114030,1755549063618,-480.0,0.00023013,2]
[380114031,1755549063627,-480.0,0.00023013,2]
[380114032,1755549063637,-480.0,0.00023013,2]
[380114033,1755549063646,-3500.0,0.0002306,2]
[380114034,1755549063655,-972.0,0.00023102,2]
[380114035,1755549063664,-2153.0,0.00023102,2]
[380114036,1755549063674,-637.0,0.00023102,2]
[380114037,1755549063683,-408.0,0.00023102,2]
[380114038,1755549063693,-377.79,0.00023173,2]
[380114039,1755549063702,-2967.29054176,0.00023225,2]
[380114040,1755549063711,-480.0,0.00023287,2]
[380114041,1755549063720,-480.0,0.00023287,2]
[380114042,1755549063730,-480.0,0.00023287,2]
[380114043,1755549063740,-2519.6,0.00023287,2]
[380114044,1755549063749,-480.0,0.00023287,2]
[380114045,1755549063758,-694.48,0.00023287,2]
[380114046,1755549063768,-480.0,0.00023287,2]
[380114047,1755549063777,-553.82,0.00023287,2]
[380114048,1755549063786,-480.0,0.00023287,2]
[380114049,1755549063795,-697.94,0.00023287,2]
[380114050,1755549063804,-681.63,0.00023287,2]
[380114051,1755549063815,-547.29,0.00023287,2]
[380114052,1755549063824,-2307.81,0.00023287,2]
[380114053,1755549063833,-480.0,0.00023287,2]
[380114054,1755549063842,-975.87,0.00023287,2]
[380114055,1755549063851,-579.91,0.00023287,2]
[380114056,1755549063861,-480.0,0.00023287,2]
[380114057,1755549063870,-983.25,0.00023287,2]
[380114058,1755549063879,-480.0,0.00023287,2]
[380114059,1755549063888,-480.0,0.00023287,2]
[380114060,1755549063897,-480.0,0.00023287,2]
[380114061,1755549063906,-1116.2,0.00023287,2]
[380114062,1755549063915,-508.63,0.00023287,2]
[380114063,1755549063924,-604.86,0.00023287,2]
[380114064,1755549063932,-480.0,0.00023287,2]
[380114065,1755549063942,-1719.49,0.00023287,2]
[380114066,1755549063951,-480.0,0.00023287,2]
[380114067,1755549063960,-480.0,0.00023287,2]
[380114068,1755549063969,-480.0,0.00023287,2]
[380114069,1755549063980,-560.0,0.00023425,2]
[380114070,1755549063989,-151.0,0.00023491,2]
[380114071,1755549063999,-151.0,0.00023491,2]
[380114072,1755549064008,-151.0,0.00023491,2]
[380114073,1755549064017,-151.0,0.00023491,2]
[380114074,1755549064027,-151.0,0.00023491,2]
[380114075,1755549064036,-151.0,0.00023491,2]
[380114076,1755549064045,-151.0,0.00023491,2]
[380114077,1755549064055,-151.0,0.00023491,2]
[380114078,1755549064064,-151.0,0.00023491,2]
[380114079,1755549064074,-151.0,0.00023491,2]
[380114080,1755549064083,-151.0,0.00023491,2]
[380114081,1755549064093,-151.0,0.00023491,2]
[380114082,1755549064102,-151.0,0.00023491,2]
[380114083,1755549064112,-151.0,0.00023491,2]
[380114084,1755549064122,-151.0,0.00023491,2]
[380114085,1755549064132,-1890.46324625,0.00023491,2]
[380114086,1755549064142,-151.0,0.00023491,2]
[380114087,1755549064152,-151.0,0.00023491,2]
[380114088,1755549064168,-151.0,0.00023491,2]
[380114089,1755549064178,-160.02631238,0.00023491,2]
[380114090,1755549064187,-151.0,0.00023491,2]
[380114091,1755549064197,-151.0,0.00023491,2]
[380114092,1755549064206,-864.0,0.00023545,20]
[380114093,1755549064215,-619.69,0.00023561,2]
[380114094,1755549064224,-480.0,0.00023561,2]
[380114095,1755549064237,-480.0,0.00023561,2]
[380114096,1755549064247,-2519.6,0.00023561,2]
[380114097,1755549064256,-546.43,0.00023561,2]
[380114098,1755549064265,-694.48,0.00023561,2]
[380114099,1755549064274,-480.0,0.00023561,2]
[380114100,1755549064284,-553.82,0.00023561,2]
[380114101,1755549064293,-480.0,0.00023561,2]
[380114102,1755549064302,-697.94,0.00023561,2]
[380114103,1755549064312,-681.63,0.00023561,2]
[380114104,1755549064321,-547.29,0.00023561,2]
[380114105,1755549064330,-151.0,0.00023561,7]
[380114106,1755549064339,-151.0,0.00023561,7]
[380114107,1755549064349,-297.197483,0.00023561,7]
[380114108,1755549064358,-2307.81,0.00023561,2]
[380114109,1755549064368,-151.0,0.00023561,7]
[380114110,1755549064377,-480.0,0.00023561,2]
[380114111,1755549064387,-297.197483,0.00023561,7]
[380114112,1755549064396,-975.87,0.00023561,2]
[380114113,1755549064405,-151.0,0.00023561,7]
[380114114,1755549064515,-455.359378,0.00023561,7]
[380114115,1755549064525,-455.359378,0.00023561,7]
[380114116,1755549064535,-579.91,0.00023561,2]
[380114117,1755549064545,-480.0,0.00023561,2]
[380114118,1755549064554,-983.25,0.00023561,2]
[380114119,1755549064563,-480.0,0.00023561,2]
[380114120,1755549064573,-151.0,0.00023561,7]
[380114121,1755549064582,-151.0,0.00023561,7]
[380114122,1755549064592,-480.0,0.00023561,2]
[380114123,1755549064601,-1000.0,0.00023561,2]
[380114124,1755549064610,-558.9615697,0.00023561,2]
[380114125,1755549064620,-1000.0,0.00023561,2]
[380114126,1755549064629,-1000.0,0.00023561,2]
[380114127,1755549064639,-1000.0,0.00023561,2]
[380114128,1755549064648,-1000.0,0.00023561,2]
[380114129,1755549064657,-1000.0,0.00023561,2]
[380114130,1755549064667,-1000.0,0.00023561,2]
[380114131,1755549064676,-1000.0,0.00023561,2]
[380114132,1755549064686,-1000.0,0.00023561,2]
[380114133,1755549064696,-802.181566,0.00023561,2]
[380114134,1755549064705,-1116.2,0.00023561,2]
[380114135,1755549064715,-508.63,0.00023561,2]
[380114136,1755549064724,-604.86,0.00023561,2]
[380114137,1755549064734,-480.0,0.00023561,2]
[380114138,1755549064743,-1719.49,0.00023561,2]
[380114139,1755549064753,-480.0,0.00023561,2]
[380114140,1755549064762,-194.84,0.00023561,2]
[380114141,1755549064772,-433.27,0.00023561,2]
[380114142,1755549064782,-9995.27,0.000236,2]
[380114143,1755549064791,-151.0,0.000236,7]
[380114144,1755549064800,-151.0,0.000236,7]
[380114145,1755549064810,-428.505256,0.000236,7]
[380114146,1755549064819,-428.505256,0.000236,7]
[380114147,1755549064828,-151.0,0.000236,7]
[380114148,1755549064838,-415.952593,0.000236,7]
[380114149,1755549064847,-415.952593,0.000236,7]
[380114150,1755549064857,-151.0,0.000236,7]
[380114151,1755549064867,-229.190028,0.000236,7]
[380114152,1755549064877,-151.0,0.000236,7]
[380114153,1755549064886,-3309.79564346,0.00023608,2]
[380114154,1755549064896,-2967.29054176,0.00023641,2]
[380114155,1755549064905,-700.0,0.00023808,2]
[380114156,1755549064915,-480.0,0.00023835,2]
[380114157,1755549064924,-246.35,0.00023835,2]
[380114158,1755549064934,-2519.6,0.00023835,2]
[380114159,1755549064943,-694.48,0.00023835,2]
[380114160,1755549064953,-480.0,0.00023835,2]
[380114161,1755549064963,-553.82,0.00023835,2]
[380114162,1755549064972,-261.73411631,0.00023835,2]
[380114163,1755549064982,-151.0,0.00023835,7]
[380114164,1755549064991,-697.94,0.00023835,2]
[380114165,1755549065001,-681.63,0.00023835,2]
[380114166,1755549065011,-151.0,0.00023835,7]
[380114167,1755549065024,-151.0,0.00023835,7]
[380114168,1755549065034,-151.0,0.00023835,7]
[380114169,1755549065044,-151.0,0.00023835,7]
[380114170,1755549065053,-547.29,0.00023835,2]
[380114171,1755549065063,-2307.81,0.00023835,2]
[380114172,1755549065072,-480.0,0.00023835,2]
[380114173,1755549065081,-975.87,0.00023835,2]
[380114174,1755549065091,-579.91,0.00023835,2]
[380114175,1755549065100,-545.79,0.00023835,2]
[380114176,1755549065110,-983.25,0.00023835,2]
[380114177,1755549065119,-212.98480256,0.00023835,2]
[380114178,1755549065129,-480.0,0.00023835,2]
[380114179,1755549065138,-1116.2,0.00023835,2]
[380114180,1755549065148,-508.63,0.00023835,2]
[380114181,1755549065159,-604.86,0.00023835,2]
[380114182,1755549065170,-480.0,0.00023835,2]
[380114183,1755549065180,-1719.49,0.00023835,2]
[380114184,1755549065190,-480.0,0.00023835,2]
[380114185,1755549065201,-660.0,0.00023973,2]
[380114186,1755549065211,-216.85420361,0.00024,7]
[380114187,1755549065220,-843.81736472,0.00024,7]
[380114188,1755549065230,-232.18122251,0.00024,7]
[380114189,1755549065241,-2967.29054176,0.00024056,2]
[380114190,1755549065251,-490.23,0.00024109,2]
[380114191,1755549065260,-2519.6,0.00024109,2]
[380114192,1755549065269,-694.48,0.00024109,2]
[380114193,1755549065279,-480.0,0.00024109,2]
[380114194,1755549065288,-553.82,0.00024109,2]
[380114195,1755549065298,-697.94,0.00024109,2]
[380114196,1755549065307,-681.63,0.00024109,2]
[380114197,1755549065316,-547.29,0.00024109,2]
[380114198,1755549065326,-2307.81,0.00024109,2]
[380114199,1755549065335,-480.0,0.00024109,2]
[380114200,1755549065345,-975.87,0.00024109,2]
[380114201,1755549065354,-579.91,0.00024109,2]
[380114202,1755549065364,-983.25,0.00024109,2]
[380114203,1755549065373,-480.0,0.00024109,2]
[380114204,1755549065383,-1116.2,0.00024109,2]
[380114205,1755549065393,-508.63,0.00024109,2]
[380114206,1755549065403,-604.86,0.00024109,2]
[380114207,1755549065412,-480.0,0.00024109,2]
[380114208,1755549065421,-1719.49,0.00024109,2]
[380114209,1755549065431,-480.0,0.00024109,2]
[380114210,1755549065441,-503.73,0.00024181,2]
[380114211,1755549065451,-155.78,0.00024323,7]
[380114212,1755549065461,-2519.6,0.00024383,2]
[380114213,1755549065470,-694.48,0.00024383,2]
[380114214,1755549065480,-480.0,0.00024383,2]
[380114215,1755549065490,-553.82,0.00024383,2]
[380114216,1755549065499,-697.94,0.00024383,2]
[380114217,1755549065508,-681.63,0.00024383,2]
[380114218,1755549065518,-547.29,0.00024383,2]
[380114219,1755549065528,-2307.81,0.00024383,2]
[380114220,1755549065537,-480.0,0.00024383,2]
[380114221,1755549065546,-975.87,0.00024383,2]
[380114222,1755549065555,-579.91,0.00024383,2]
[380114223,1755549065564,-983.25,0.00024383,2]
[380114224,1755549065574,-607.74910949,0.00024383,2]
[380114225,1755549065583,-1116.2,0.00024383,2]
[380114226,1755549065593,-508.63,0.00024383,2]
[380114227,1755549065602,-604.86,0.00024383,2]
[380114228,1755549065611,-560.84,0.00024383,2]
[380114229,1755549065621,-1719.49,0.00024383,2]
[380114230,1755549065631,-480.0,0.00024383,2]
[380114231,1755549065640,-155.78,0.00024423,7]
[380114232,1755549065649,-2967.29054176,0.00024472,2]
[380114233,1755549065659,-420.0,0.00024521,2]
[380114234,1755549065668,-155.78,0.00024523,7]
[380114235,1755549065678,-547.32,0.000246,7]
[380114236,1755549065687,-1384.98,0.000246,7]
[380114237,1755549065697,-151.0,0.000246,7]
[380114238,1755549065706,-151.0,0.000246,7]
[380114239,1755549065716,-823.0,0.00024604,2]
[380114240,1755549065725,-155.78,0.00024623,7]
[380114241,1755549065734,-175.0,0.00024623,2]
[380114242,1755549065744,-277.510548,0.00024657,7]
[380114243,1755549065753,-277.510548,0.00024657,7]
[380114244,1755549065762,-183.342896,0.00024657,7]
[380114245,1755549065773,-238.315502,0.00024657,7]
[380114246,1755549065783,-183.342896,0.00024657,7]
[380114247,1755549065793,-238.315502,0.00024657,7]
[380114248,1755549065802,-151.0,0.00024657,7]
[380114249,1755549065812,-151.0,0.00024657,7]
[380114250,1755549065822,-151.0,0.00024657,7]
[380114251,1755549065832,-151.0,0.00024657,7]
[380114252,1755549065841,-151.0,0.00024657,7]
[380114253,1755549065850,-151.0,0.00024657,7]
[380114254,1755549065859,-151.0,0.00024657,7]
[380114255,1755549065869,-151.0,0.00024657,7]
[380114256,1755549065878,-153.736361,0.00024657,7]
[380114257,1755549065887,-151.0,0.00024657,7]
[380114258,1755549065897,-151.0,0.00024657,7]
[380114259,1755549065906,-151.0,0.00024657,7]
[380114260,1755549065916,-151.0,0.00024657,7]
[380114261,1755549065925,-151.0,0.00024657,7]
[380114262,1755549065934,-151.0,0.00024657,7]
[380114263,1755549065944,-151.0,0.00024657,7]
[380114264,1755549065953,-151.0,0.00024657,7]
[380114265,1755549065962,-1268.596536,0.00024657,7]
[380114266,1755549065972,-1268.596536,0.00024657,7]
[380114267,1755549065981,-2519.6,0.00024657,2]
[380114268,1755549065991,-694.48,0.00024657,2]
[380114269,1755549066001,-480.0,0.00024657,2]
[380114270,1755549066010,-553.82,0.00024657,2]
[380114271,1755549066020,-697.94,0.00024657,2]
[380114272,1755549066029,-681.63,0.00024657,2]
[380114273,1755549066038,-547.29,0.00024657,2]
[380114274,1755549066047,-2307.81,0.00024657,2]
[380114275,1755549066057,-480.0,0.00024657,2]
[380114276,1755549066066,-975.87,0.00024657,2]
[380114277,1755549066075,-579.91,0.00024657,2]
[380114278,1755549066085,-983.25,0.00024657,2]
[380114279,1755549066094,-1116.2,0.00024657,2]
[380114280,1755549066103,-508.63,0.00024657,2]
[380114281,1755549066113,-604.86,0.00024657,2]
[380114282,1755549066122,-1719.49,0.00024657,2]
[380114283,1755549066132,-480.0,0.00024657,2]
[380114284,1755549066142,-155.78,0.00024723,7]
[380114285,1755549066151,-151.0,0.000248,7]
[380114286,1755549066163,-151.0,0.000248,7]
[380114287,1755549066173,-151.0,0.000248,7]
[380114288,1755549066183,-152.947268,0.000248,7]
[380114289,1755549066193,-239.039165,0.000248,7]
[380114290,1755549066205,-151.0,0.000248,7]
[380114291,1755549066214,-151.0,0.000248,7]
[380114292,1755549066225,-151.0,0.000248,7]
[380114293,1755549066240,-151.0,0.000248,7]
[380114294,1755549066249,-151.0,0.000248,7]
[380114295,1755549066259,-428.505256,0.000248,7]
[380114296,1755549066268,-428.505256,0.000248,7]
[380114297,1755549066278,-151.0,0.000248,7]
[380114298,1755549066287,-415.952593,0.000248,7]
[380114299,1755549066296,-415.952593,0.000248,7]
[380114300,1755549066306,-151.0,0.000248,7]
[380114301,1755549066315,-8156.34295978,0.000248,2]
[380114302,1755549066324,-151.0,0.000248,7]
[380114303,1755549066333,-151.0,0.000248,7]
[380114304,1755549066343,-151.0,0.000248,7]
[380114305,1755549066352,-151.0,0.000248,7]
[380114306,1755549066361,-151.0,0.000248,7]
[380114307,1755549066371,-151.0,0.000248,7]
[380114308,1755549066380,-151.0,0.000248,7]
[380114309,1755549066389,-151.0,0.000248,7]
[380114310,1755549066398,-297.197483,0.000248,7]
[380114311,1755549066408,-297.197483,0.000248,7]
[380114312,1755549066417,-151.0,0.000248,7]
[380114313,1755549066426,-455.359378,0.000248,7]
[380114314,1755549066435,-49084.4362026,0.000248,2]
[380114315,1755549066445,-455.359378,0.000248,7]
[380114316,1755549066454,-151.0,0.000248,7]
[380114317,1755549066463,-5000.0,0.00024811,3]
[380114318,1755549066472,-155.78,0.00024823,7]
[380114319,1755549066482,-2967.29054176,0.00024887,2]
[380114320,1755549066492,-200.56360519,0.00024899,2]
[380114321,1755549066502,-1196.51356586,0.000249,2]
[380114322,1755549066512,-151.0,0.000249,7]
[380114323,1755549066523,-220.744006,0.000249,7]
[380114324,1755549066533,-151.0,0.000249,7]
[380114325,1755549066542,-151.0,0.000249,7]
[380114326,1755549066552,-151.0,0.000249,7]
[380114327,1755549066561,-151.0,0.000249,7]
[380114328,1755549066571,-151.0,0.000249,7]
[380114329,1755549066580,-470.833735,0.000249,7]
[380114330,1755549066590,-470.833735,0.000249,7]
[380114331,1755549066600,-250.136176,0.000249,7]
[380114332,1755549066610,-260.6682,0.000249,7]
[380114333,1755549066620,-250.136176,0.000249,7]
[380114334,1755549066629,-151.0,0.000249,7]
[380114335,1755549066639,-151.0,0.000249,7]
[380114336,1755549066649,-277.510548,0.000249,7]
[380114337,1755549066660,-277.510548,0.000249,7]
[380114338,1755549066670,-183.342896,0.000249,7]
[380114339,1755549066680,-238.315502,0.000249,7]
[380114340,1755549066689,-183.342896,0.000249,7]
[380114341,1755549066699,-238.315502,0.000249,7]
[380114342,1755549066709,-151.0,0.000249,7]
[380114343,1755549066718,-151.0,0.000249,7]
[380114344,1755549066728,-151.0,0.000249,7]
[380114345,1755549066738,-151.0,0.000249,7]
[380114346,1755549066747,-151.0,0.000249,7]
[380114347,1755549066756,-151.0,0.000249,7]
[380114348,1755549066766,-151.0,0.000249,7]
[380114349,1755549066777,-151.0,0.000249,7]
[380114350,1755549066786,-151.0,0.000249,7]
[380114351,1755549066796,-151.0,0.000249,7]
[380114352,1755549066805,-151.0,0.000249,7]
[380114353,1755549066814,-151.0,0.000249,7]
[380114354,1755549066823,-1268.596536,0.000249,7]
[380114355,1755549066832,-1268.596536,0.000249,7]
[380114356,1755549066841,-151.0,0.000249,7]
[380114357,1755549066850,-151.0,0.000249,7]
[380114358,1755549066860,-843.81736472,0.000249,3]
[380114359,1755549066869,-428.505256,0.000249,7]
[380114360,1755549066878,-428.505256,0.000249,7]
[380114361,1755549066888,-301.782346,0.000249,7]
[380114362,1755549066898,-415.952593,0.000249,7]
[380114363,1755549066907,-415.952593,0.000249,7]
[380114364,1755549066916,-151.0,0.000249,7]
[380114365,1755549066926,-151.0,0.000249,7]
[380114366,1755549066935,-151.0,0.000249,7]
[380114367,1755549066944,-151.0,0.000249,7]
[380114368,1755549066954,-151.0,0.000249,7]
[380114369,1755549066963,-151.0,0.000249,7]
[380114370,1755549066973,-151.0,0.000249,7]
[380114371,1755549066982,-151.0,0.000249,7]
[380114372,1755549066992,-151.0,0.000249,7]
[380114373,1755549067001,-297.197483,0.000249,7]
[380114374,1755549067010,-297.197483,0.000249,7]
[380114375,1755549067021,-455.359378,0.000249,7]
[380114376,1755549067030,-472038.04667737,0.000249,2]
[380114377,1755549067049,-681.8757257,0.000249,2]
[380114378,1755549067076,-480.0,0.00019178,2]
[380114379,1755549067085,-198.92998736,0.000249,2]
[380114380,1755549067097,-76345.07880157,0.000249,2]
[380114381,1755549067106,-455.359378,0.000249,7]
[380114382,1755549067115,-213.235151,0.000249,7]
[380114383,1755549067124,-213.235151,0.000249,7]
[380114384,1755549067133,-213.235151,0.000249,7]
[380114385,1755549067142,-213.235151,0.000249,7]
[380114386,1755549067151,-1756.558331,0.000249,7]
[380114387,1755549067162,-1756.558331,0.000249,7]
[380114388,1755549067172,-151.0,0.000249,7]
[380114389,1755549067182,-1756.558331,0.000249,7]
[380114390,1755549067191,-1756.558331,0.000249,7]
[380114391,1755549067283,-273.019459,0.000249,7]
[380114392,1755549067303,-273.019459,0.000249,7]
[380114393,1755549067312,-273.019459,0.000249,7]
[380114394,1755549067322,-273.019459,0.000249,7]
[380114395,1755549067332,-151.0,0.000249,7]
[380114396,1755549067342,-151.0,0.000249,7]
[380114397,1755549067351,-151.0,0.000249,7]
[380114398,1755549067361,-151.0,0.000249,7]
[380114399,1755549067371,-151.0,0.000249,7]
[380114400,1755549067381,-266.986937,0.000249,7]
[380114401,1755549067390,-151.0,0.000249,7]
[380114402,1755549067400,-151.0,0.000249,7]
[380114403,1755549067409,-151.0,0.000249,7]
[380114404,1755549067418,-11.55740323,0.000249,7]
[380114405,1755549067488,-139.44259677,0.000249,7]
[380114406,1755549067497,-700.0,0.00024904,2]
[380114407,1755549067508,-155.78,0.00024923,7]
[380114408,1755549067518,-2519.6,0.00024931,2]
[380114409,1755549067528,-694.48,0.00024931,2]
[380114410,1755549067537,-323.86,0.00024931,2]
[380114411,1755549067546,-553.82,0.00024931,2]
[380114412,1755549067555,-697.94,0.00024931,2]
[380114413,1755549067565,-681.63,0.00024931,2]
[380114414,1755549067574,-547.29,0.00024931,2]
[380114415,1755549067583,-2307.81,0.00024931,2]
[380114416,1755549067592,-480.0,0.00024931,2]
[380114417,1755549067601,-975.87,0.00024931,2]
[380114418,1755549067610,-579.91,0.00024931,2]
[380114419,1755549067619,-983.25,0.00024931,2]
[380114420,1755549067628,-1116.2,0.00024931,2]
[380114421,1755549067637,-508.63,0.00024931,2]
[380114422,1755549067646,-604.86,0.00024931,2]
[380114423,1755549067656,-1719.49,0.00024931,2]
[380114424,1755549067665,-174.60773236,0.00024931,2]
[380114425,1755549067674,-175.0,0.00024933,7]
[380114426,1755549067684,-175.0,0.00024936,2]
[380114427,1755549067692,-16057.2542986,0.00025,2]
[380114428,1755549067701,-175.0,0.00025012,2]
[380114429,1755549067710,-155.78,0.00025023,7]
[380114430,1755549067719,-1860.73137883,0.00025036,2]
[380114431,1755549067731,-339.26862117,0.00025036,2]
[380114432,1755549067741,-175.0,0.00025037,2]
[380114433,1755549067750,-175.0,0.00025053,2]
[380114434,1755549067760,-155.78,0.00025123,7]
[380114435,1755549067769,-175.0,0.00025182,2]
[380114436,1755549067778,-201.06147971,0.00025187,2]
[380114437,1755549067787,-629.66,0.00025188,2]
[380114438,1755549067796,-2945.86664557,0.000252,2]
[380114439,1755549067807,-302.10002581,0.000252,2]
[380114440,1755549129596,171.158991,0.00013699,2]
[380114441,1755549627208,235.897667,0.00018416,2]
[380114442,1755549670413,1651.0,0.00018555,2]
[380114443,1755549727925,480.0,0.00027945,120]
[380114444,1755549735524,1137.0,0.00028,120]
[380114445,1755550012171,-300.0,0.00019077,2]
[380114446,1755550012193,-146.15369234,0.00019077,2]
[380114447,1755550016435,250.824132,0.00027397,120]
[380114465,1755550203986,191.733878,0.00013699,2]
[380114488,1755550232189,-1053.84630766,0.00019077,2]
[380114489,1755550232198,-483.95526556,0.00019078,2]
[380114490,1755550232207,-5425.74233911,0.00019078,2]
[380114491,1755550232216,-1227.24957682,0.00019167,14]
[380114492,1755550232226,-300.0,0.00019167,2]
[380114493,1755550232235,-300.0,0.00019167,2]
[380114494,1755550232244,-300.0,0.00019167,2]
[380114495,1755550232253,-300.0,0.00019167,2]
[380114496,1755550232262,-40607.94697319,0.00019168,2]
[380114590,1755550238405,-3983.90795174,0.00019168,2]
[380114619,1755550240071,-3353.86551331,0.00019168,2]
[380114620,1755550240081,-718.07,0.00019168,3]
[380114621,1755550240091,-359.03,0.00019168,3]
[380114622,1755550240100,-179.52,0.00019168,3]
[380114623,1755550240110,-538.56,0.00019168,3]
[380114624,1755550240120,-500.0,0.00019173,2]
[380114625,1755550240130,-480.0,0.00019178,2]
[380114626,1755550240141,-480.0,0.00019178,2]
[380114627,1755550240150,-480.0,0.00019178,2]
[380114628,1755550240160,-480.0,0.00019178,2]
[380114629,1755550240169,-480.0,0.00019178,2]
[380114630,1755550240179,-480.0,0.00019178,2]
[380114631,1755550240189,-480.0,0.00019178,2]
[380114632,1755550240198,-480.0,0.00019178,2]
[380114633,1755550240208,-500.0,0.00019178,2]
[380114634,1755550240217,-500.0,0.00019178,2]
[380114635,1755550240227,-460.76201245,0.00019178,2]
[380114636,1755550240236,-480.0,0.00019178,2]
[380114637,1755550240246,-480.0,0.00019178,2]
[380114638,1755550240255,-480.0,0.00019178,2]
[380114639,1755550240265,-480.0,0.00019178,2]
[380114640,1755550240274,-480.0,0.00019178,2]
[380114641,1755550240284,-509.07,0.00019178,2]
[380114642,1755550240293,-480.0,0.00019178,2]
[380114643,1755550240303,-480.0,0.00019178,2]
[380114644,1755550240312,-480.0,0.00019178,2]
[380114645,1755550240321,-480.0,0.00019178,2]
[380114646,1755550240331,-480.0,0.00019178,2]
[380114647,1755550240340,-480.0,0.00019178,2]
[380114648,1755550240350,-480.0,0.00019178,2]
[380114649,1755550240359,-480.0,0.00019178,2]
[380114650,1755550240369,-480.0,0.00019178,2]
[380114651,1755550240378,-460.0,0.00019178,2]
[380114652,1755550240387,-595.59,0.00019178,2]
[380114653,1755550240397,-480.0,0.00019178,2]
[380114654,1755550240406,-480.0,0.00019178,2]
[380114655,1755550240415,-421.29033633,0.00019178,2]
[380114656,1755550240425,-480.0,0.00019178,2]
[380114657,1755550240434,-461.20105334,0.00019178,2]
[380114658,1755550240444,-460.0,0.00019178,2]